[Event "FishPartners Open 2018"]
[Site "Spakenburg"]
[Date "2018.07.07"]
[Round "4"]
[White "Tasc, R30 (computer)"]
[Black "Bosboom, Manuel"]
[Result "0-1"]
[ECO "B06"]
[WhiteElo "2380"]
[BlackElo "2403"]
[Annotator "NA"]
[PlyCount "150"]
[EventDate "2018.07.07"]
[EventType "swiss"]
[EventCountry "NED"]
[SourceTitle "playchess.com"]
[Source "ChessBase"]
[SourceQuality "1"]
[TimeControl "1500"]

1. d4 {[%emt 0:00:16]} g6 {[%emt 0:00:01]} 2. e4 {[%emt 0:00:12]} Bg7 {[%emt 0:00:01]} 3. Nc3 c6 {[%emt 0:00:01]} 4. Nf3 {[%emt 0:00:29]} d5 {[%emt 0:00:01]} 5. exd5 {[%emt 0:00:18]} cxd5 {[%emt 0:00:02]} 6. Bb5+ {[%emt 0:00:32]} Bd7 {[%emt 0:00:03]} 7. Qd3 {[%emt 0:00:35]} Nf6 {[%emt 0:00:03]} 8. Bf4 {[%emt 0:00:16]} a6 {[%emt 0:00:20]} 9. Bxd7+ {[%emt 0:00:26]} Nbxd7 {[%emt 0:00:06]} 10. O-O {[%emt 0:00:32]} O-O {[%emt 0:00:04]} 11. Rfe1 {[%emt 0:00:36]} Rc8 {[%emt 0:00:03]} 12. a4 {[%emt 0:00:21]} Nb6 {[%emt 0:00:47]} 13. a5 {[%emt 0:00:28]} Nc4 {[%emt 0:00:04]} 14. b3 {[%emt 0:00:13]} Nxa5 {[%emt 0:00:16]} 15. h3 {[%emt 0:00:11]} Nc6 {[%emt 0:00:04]} 16. Bg3 {[%emt 0:00:21]} e6 {[%emt 0:00:23]} 17. Qd2 {[%emt 0:00:27]} Ne8 {[%emt 0:00:18]} 18. Kh1 {[%emt 0:00:56]} Nd6 {[%emt 0:00:06]} 19. Bh2 {[%emt 0:00:16]} Nf5 {[%emt 0:00:09]} 20. Ne2 {[%emt 0:00:26]} Qb6 {[%emt 0:00:31]} 21. Red1 {[%emt 0:00:30]} Rfd8 {[%emt 0:00:16]} 22. c3 {[%emt 0:00:28]} Nd6 {[%emt 0:00:33]} 23. Bxd6 {[%emt 0:00:14]} Rxd6 {[%emt 0:00:01]} 24. c4 {[%emt 0:00:26]} Qb4 {[%emt 0:01:55]} 25. Qxb4 {[%emt 0:00:23]} Nxb4 {[%emt 0:00:01]} 26. c5 {[%emt 0:00:12]} Rdd8 {[%emt 0:00:20]} 27. Kh2 {[%emt 0:00:07]} f6 {[%emt 0:00:49]} 28. Ra4 {[%emt 0:00:18]} Nc6 {[%emt 0:00:02]} 29. Nf4 {[%emt 0:00:12]} Kf7 {[%emt 0:00:02]} 30. Raa1 {[%emt 0:00:20]} Na7 {[%emt 0:00:22]} 31. g3 {[%emt 0:00:25]} Nb5 {[%emt 0:00:05]} 32. Kg2 {[%emt 0:00:22]} Rc6 {[%emt 0:00:18]} 33. h4 {[%emt 0:00:20]} Nc3 {[%emt 0:00:35]} 34. Rdc1 {[%emt 0:00:08]} Ne4 {[%emt 0:00:05]} 35. Nd3 {[%emt 0:00:22]} Rc7 {[%emt 0:01:31]} 36. g4 {[%emt 0:00:17]} h6 {[%emt 0:00:26]} 37. Ra2 {[%emt 0:00:19]} g5 {[%emt 0:00:06]} 38. Rh1 {[%emt 0:00:27]} Kg6 {[%emt 0:00:36]} 39. Re2 {[%emt 0:00:21]} Re7 {[%emt 0:00:17]} 40. hxg5 {[%emt 0:00:18]} hxg5 {[%emt 0:00:06]} 41. Ra2 {[%emt 0:00:18]} Nc3 {[%emt 0:00:10]} 42. Rc2 {[%emt 0:00:15]} Nb5 {[%emt 0:00:02]} 43. Rcc1 {[%emt 0:00:17]} e5 {[%emt 0:00:12]} 44. dxe5 {[%emt 0:00:20]} fxe5 {[%emt 0:00:01]} 45. Nb4 {[%emt 0:00:13]} e4 {[%emt 0:00:05]} 46. Ng1 {[%emt 0:00:10]} a5 {[%emt 0:00:41]} 47. Nc2 {[%emt 0:00:27]} d4 {[%emt 0:00:10]} 48. Rd1 {[%emt 0:00:16]} Rc8 {[%emt 0:00:53]} 49. b4 {[%emt 0:00:08]} axb4 {[%emt 0:00:32]} 50. Nxb4 {[%emt 0:00:20]} Nc3 {[%emt 0:00:18]} 51. Re1 {[%emt 0:00:07]} Rxc5 {[%emt 0:00:02]} 52. Ne2 {[%emt 0:00:20]} d3 {[%emt 0:00:54]} 53. Nxc3 {[%emt 0:00:20]} Bxc3 {[%emt 0:00:11]} 54. Rb1 {[%emt 0:00:09]} Rf7 {[%emt 0:00:34]} 55. Rhd1 {[%emt 0:00:18]} Rf4 {[%emt 0:00:25]} 56. Kg3 Be5 {[%emt 0:00:32]} 57. Rf1 {[%emt 0:00:42]} d2 {[%emt 0:00:48]} 58. Rfd1 {[%emt 0:00:14]} Rc3+ {[%emt 0:00:05]} 59. Kg2 {[%emt 0:00:14]} Rxg4+ {[%emt 0:00:09]} 60. Kf1 {[%emt 0:00:09]} Bf4 {[%emt 0:01:33]} 61. Nd5 {[%emt 0:00:18]} Rc2 {[%emt 0:01:14]} 62. Rxb7 {[%emt 0:00:19]} Rh4 {[%emt 0:00:11]} 63. Ke2 {[%emt 0:00:18]} Rh2 {[%emt 0:00:02]} 64. Rb4 {[%emt 0:00:22]} Kf5 {[%emt 0:00:21]} 65. Rb6 {[%emt 0:00:21]} Rc1 {[%emt 0:00:24]} 66. Nxf4 {[%emt 0:00:16]} Rxd1 {[%emt 0:00:09]} 67. Kxd1 {[%emt 0:00:11]} gxf4 {[%emt 0:00:07]} 68. Rb5+ {[%emt 0:00:14]} Kg4 {[%emt 0:00:01]} 69. Kxd2 {[%emt 0:00:11]} Rxf2+ {[%emt 0:00:01]} 70. Kc3 {[%emt 0:00:09]} Kf3 {[%emt 0:00:04]} 71. Rb1 {[%emt 0:00:18]} e3 {[%emt 0:00:01]} 72. Re1 {[%emt 0:00:13]} Ke4 {[%emt 0:00:04]} 73. Rb1 {[%emt 0:00:15]} Ra2 {[%emt 0:00:03]} 74. Rb4+ {[%emt 0:00:13]} Kf3 {[%emt 0:00:01]} 75. Rb1 {[%emt 0:00:10]} Kf2 {[%emt 0:00:06]} 0-1

[Event "FishPartners Open 2018"]
[Site "Spakenburg"]
[Date "2018.07.07"]
[Round "4"]
[White "Peelen, Piet"]
[Black "De Kraker, Johnny"]
[Result "1-0"]
[ECO "E94"]
[WhiteElo "2336"]
[BlackElo "1942"]
[Annotator "NA"]
[PlyCount "63"]
[EventDate "2018.07.07"]
[EventType "swiss"]
[EventCountry "NED"]
[SourceTitle "playchess.com"]
[Source "ChessBase"]
[SourceQuality "1"]
[TimeControl "1500"]

1. d4 {[%emt 0:00:21]} Nf6 {[%emt 0:00:03]} 2. c4 {[%emt 0:00:07]} g6 {[%emt 0:00:02]} 3. Nc3 {[%emt 0:00:01]} Bg7 {[%emt 0:00:01]} 4. e4 {[%emt 0:00:07]} d6 {[%emt 0:00:01]} 5. Be2 {[%emt 0:00:02]} O-O {[%emt 0:00:06]} 6. Nf3 {[%emt 0:00:01]} e5 {[%emt 0:00:05]} 7. O-O {[%emt 0:00:04]} exd4 {[%emt 0:00:03]} 8. Nxd4 {[%emt 0:00:02]} Re8 {[%emt 0:00:03]} 9. f3 {[%emt 0:00:05]} Nc6 {[%emt 0:00:09]} 10. Be3 {[%emt 0:01:24]} Nh5 {[%emt 0:00:13]} 11. Nxc6 {[%emt 0:00:29]} bxc6 {[%emt 0:00:03]} 12. Qd2 {[%emt 0:00:01]} c5 {[%emt 0:00:22]} 13. Rfd1 {[%emt 0:00:31]} Be6 {[%emt 0:01:29]} 14. Rac1 {[%emt 0:02:24]} Qb8 {[%emt 0:02:45]} 15. b3 {[%emt 0:00:19]} Qb4 {[%emt 0:02:23]} 16. Nb5 {[%emt 0:02:52]} Qxd2 {[%emt 0:00:54]} 17. Bxd2 {[%emt 0:00:02]} Re7 {[%emt 0:04:19]} 18. Ba5 {[%emt 0:01:27]} Rc8 {[%emt 0:01:09]} 19. g3 {[%emt 0:00:57]} f5 {[%emt 0:01:57]} 20. exf5 {[%emt 0:04:56]} Bxf5 {[%emt 0:00:35]} 21. Bd3 {[%emt 0:00:22]} Bxd3 {[%emt 0:02:19]} 22. Rxd3 {[%emt 0:00:01]} a6 {[%emt 0:00:09]} 23. Nc3 {[%emt 0:01:52]} Bd4+ {[%emt 0:00:07]} 24. Kf1 {[%emt 0:00:03]} Nf6 {[%emt 0:00:47]} 25. Re1 {[%emt 0:00:48]} Rce8 {[%emt 0:00:06]} 26. Rxe7 {[%emt 0:00:10]} Rxe7 {[%emt 0:00:00]} 27. Ne2 {[%emt 0:00:09]} Re3 {[%emt 0:02:43]} 28. Rxe3 {[%emt 0:00:04]} Bxe3 {[%emt 0:00:01]} 29. Bxc7 {[%emt 0:00:02]} Ne8 {[%emt 0:00:05]} 30. Bd8 {[%emt 0:00:23]} Kf7 {[%emt 0:00:24]} 31. Nc3 {[%emt 0:00:05]} Bd4 {[%emt 0:00:14]} 32. Ne4 {[%emt 0:00:15]} 1-0

[Event "FishPartners Open 2018"]
[Site "Spakenburg"]
[Date "2018.07.07"]
[Round "4"]
[White "Van de Griendt, Jan Willem"]
[Black "Grutter, Tim"]
[Result "0-1"]
[ECO "E81"]
[WhiteElo "2335"]
[BlackElo "1971"]
[Annotator "NA"]
[PlyCount "49"]
[EventDate "2018.07.07"]
[EventType "swiss"]
[EventCountry "NED"]
[SourceTitle "playchess.com"]
[Source "ChessBase"]
[SourceQuality "1"]
[TimeControl "1500"]

1. d4 {[%emt 0:02:30]} Nf6 {[%emt 0:00:02]} 2. c4 {[%emt 0:00:02]} g6 {[%emt 0:00:03]} 3. Nc3 {[%emt 0:00:17]} Bg7 {[%emt 0:00:02]} 4. e4 {[%emt 0:00:02]} d6 {[%emt 0:00:03]} 5. f3 {[%emt 0:00:01]} O-O {[%emt 0:00:20]} 6. Bg5 {[%emt 0:00:02]} h6 {[%emt 0:00:13]} 7. Be3 {[%emt 0:00:01]} Nbd7 {[%emt 0:00:02]} 8. Nh3 {[%emt 0:00:33]} c5 {[%emt 0:00:23]} 9. d5 {[%emt 0:00:02]} Ne8 {[%emt 0:00:35]} 10. Qd2 {[%emt 0:00:01]} Kh7 {[%emt 0:00:01]} 11. Nf2 {[%emt 0:00:10]} e6 {[%emt 0:00:04]} 12. Be2 {[%emt 0:00:55]} exd5 {[%emt 0:00:06]} 13. cxd5 {[%emt 0:00:02]} Rb8 {[%emt 0:00:58]} 14. a4 {[%emt 0:00:09]} a6 {[%emt 0:00:03]} 15. O-O {[%emt 0:00:13]} Nc7 {[%emt 0:00:11]} 16. Rab1 {[%emt 0:00:27]} b5 {[%emt 0:00:09]} 17. axb5 {[%emt 0:00:01]} axb5 {[%emt 0:00:02]} 18. b4 {[%emt 0:00:00]} Qf6 {[%emt 0:03:09]} 19. Rfc1 {[%emt 0:00:02]} h5 {[%emt 0:00:03]} 20. f4 {[%emt 0:00:58]} Re8 {[%emt 0:00:27]} 21. bxc5 {[%emt 0:00:14]} Nxc5 {[%emt 0:00:25]} 22. e5 {[%emt 0:00:02]} Qe7 {[%emt 0:00:19]} 23. Bxc5 {[%emt 0:00:08]} dxc5 {[%emt 0:01:09]} 24. d6 {[%emt 0:00:02]} Qd7 {[%emt 0:00:38]} 25. dxc7 {[%emt 0:00:01]} 0-1

[Event "FishPartners Open 2018"]
[Site "Spakenburg"]
[Date "2018.07.07"]
[Round "4"]
[White "Bohm, Hans"]
[Black "Beerdsen, Thomas"]
[Result "1/2-1/2"]
[ECO "A40"]
[WhiteElo "2307"]
[BlackElo "2469"]
[Annotator "ChessBase"]
[PlyCount "112"]
[EventDate "2018.07.07"]
[EventType "swiss"]
[EventCountry "NED"]
[SourceTitle "playchess.com"]
[Source "ChessBase"]
[SourceQuality "1"]
[TimeControl "1500"]

1. d4 {[%emt 0:00:01]} e6 {[%emt 0:00:01]} 2. Nf3 {[%emt 0:00:05]} c5 {[%emt 0:00:01]} 3. c3 {[%emt 0:00:33]} Nf6 {[%emt 0:00:12]} 4. Bg5 {[%emt 0:00:17]} Nc6 {[%emt 0:00:18]} 5. e3 {[%emt 0:00:34]} h6 {[%emt 0:00:24]} 6. Bh4 {[%emt 0:00:13]} d5 {[%emt 0:00:17]} 7. Nbd2 {[%emt 0:00:06]} Bd6 {[%emt 0:01:40]} 8. Bd3 {[%emt 0:00:12]} O-O {[%emt 0:00:45]} 9. O-O {[%emt 0:00:25]} e5 {[%emt 0:00:12]} 10. dxe5 {[%emt 0:00:06]} Nxe5 {[%emt 0:00:02]} 11. Nxe5 {[%emt 0:00:04]} Bxe5 {[%emt 0:00:02]} 12. Nf3 {[%emt 0:00:21]} Bc7 {[%emt 0:00:44]} 13. Qc2 {[%emt 0:00:37]} Bg4 {[%emt 0:00:29]} 14. Bf5 {[%emt 0:00:17]} Qd6 {[%emt 0:01:04]} 15. Bg3 {[%emt 0:01:41]} Qe7 {[%emt 0:00:33]} 16. Bxg4 {[%emt 0:00:30]} Bxg3 {[%emt 0:00:44]} 17. hxg3 {[%emt 0:00:20]} Nxg4 {[%emt 0:00:02]} 18. Qf5 {[%emt 0:00:17]} Qe6 {[%emt 0:00:49]} 19. Qh5 {[%emt 0:01:33]} g6 {[%emt 0:00:50]} 20. Qh4 {[%emt 0:00:25]} Kg7 {[%emt 0:00:10]} 21. Rad1 {[%emt 0:00:39]} g5 {[%emt 0:00:32]} 22. Nxg5 {[%emt 0:00:29]} hxg5 {[%emt 0:00:06]} 23. Qxg5+ {[%emt 0:00:02]} Qg6 {[%emt 0:00:56]} 24. Rxd5 {[%emt 0:00:02]} Rh8 {[%emt 0:00:41]} 25. f3 {[%emt 0:01:01]} Nf6 {[%emt 0:00:37]} 26. Rxc5 {[%emt 0:00:19]} Rh5 {[%emt 0:00:23]} 27. Qxg6+ {[%emt 0:00:04]} Kxg6 {[%emt 0:00:02]} 28. Rxh5 {[%emt 0:00:13]} Nxh5 {[%emt 0:00:05]} 29. g4 {[%emt 0:00:02]} Nf6 {[%emt 0:01:10]} 30. Rd1 {[%emt 0:00:03]} Re8 {[%emt 0:00:18]} 31. Kf2 {[%emt 0:00:02]} Re6 {[%emt 0:00:04]} 32. e4 {[%emt 0:03:09]} Rb6 {[%emt 0:00:22]} 33. Rd2 {[%emt 0:00:12]} a5 {[%emt 0:00:08]} 34. b3 {[%emt 0:00:47]} a4 {[%emt 0:00:45]} 35. e5 {[%emt 0:01:38]} axb3 {[%emt 0:00:16]} 36. axb3 {[%emt 0:00:01]} Nxg4+ {[%emt 0:02:29]} 37. fxg4 {[%emt 0:00:06]} Rxb3 {[%emt 0:00:02]} 38. Rd3 {[%emt 0:00:27]} Kg5 {[%emt 0:00:05]} 39. Rf3 {[%emt 0:04:14]} Kxg4 {[%emt 0:00:32]} 40. Ke2 {[%emt 0:00:13]} Kg5 {[%emt 0:02:01]} 41. Kd3 {[%emt 0:00:25]} Kg6 {[%emt 0:00:02]} 42. Ke4 {[%emt 0:00:28]} Rb6 {[%emt 0:00:19]} 43. Rg3+ {[%emt 0:00:02]} Kh7 {[%emt 0:00:04]} 44. Kf5 {[%emt 0:00:07]} Rc6 {[%emt 0:00:03]} 45. Rd3 {[%emt 0:00:09]} Kg7 {[%emt 0:00:03]} 46. g4 {[%emt 0:00:03]} b5 {[%emt 0:00:06]} 47. Rd7 {[%emt 0:00:34]} Kf8 {[%emt 0:00:27]} 48. Rb7 {[%emt 0:00:05]} Rxc3 {[%emt 0:00:05]} 49. Rxb5 {[%emt 0:00:01]} Rf3+ {[%emt 0:00:04]} 50. Kg5 {[%emt 0:00:01]} Kg7 {[%emt 0:00:10]} 51. Rb6 {[%emt 0:00:05]} Re3 {[%emt 0:00:04]} 52. Kf5 {[%emt 0:00:01]} Rf3+ {[%emt 0:00:03]} 53. Ke4 {[%emt 0:00:01]} Rf1 {[%emt 0:00:03]} 54. e6 {[%emt 0:00:07]} fxe6 {[%emt 0:00:02]} 55. Rxe6 {[%emt 0:00:01]} Re1+ {[%emt 0:00:02]} 56. Kf5 {[%emt 0:00:00]} Rxe6 1/2-1/2

[Event "FishPartners Open 2018"]
[Site "Spakenburg"]
[Date "2018.07.07"]
[Round "4"]
[White "Ree, Hans"]
[Black "Nijboer, Friso"]
[Result "0-1"]
[ECO "A16"]
[WhiteElo "2303"]
[BlackElo "2495"]
[Annotator "ChessBase"]
[PlyCount "92"]
[EventDate "2018.07.07"]
[EventType "swiss"]
[EventCountry "NED"]
[SourceTitle "playchess.com"]
[Source "ChessBase"]
[SourceQuality "1"]
[TimeControl "1500"]

1. c4 {[%emt 0:00:04]} Nf6 {[%emt 0:00:04]} 2. Nc3 {[%emt 0:00:02]} g6 {[%emt 0:00:02]} 3. e4 {[%emt 0:00:02]} d6 {[%emt 0:00:07]} 4. d4 {[%emt 0:00:02]} Bg7 {[%emt 0:00:02]} 5. Bd3 {[%emt 0:00:06]} O-O {[%emt 0:00:08]} 6. Nge2 {[%emt 0:00:01]} c5 {[%emt 0:00:31]} 7. d5 {[%emt 0:00:09]} e6 {[%emt 0:00:01]} 8. O-O {[%emt 0:00:12]} exd5 {[%emt 0:00:06]} 9. exd5 {[%emt 0:00:12]} Ng4 {[%emt 0:00:24]} 10. f4 {[%emt 0:00:38]} f5 {[%emt 0:02:20]} 11. h3 {[%emt 0:01:10]} Nh6 {[%emt 0:00:01]} 12. Kh1 {[%emt 0:00:47]} Nd7 {[%emt 0:00:11]} 13. Ng1 {[%emt 0:00:07]} Nf6 {[%emt 0:00:53]} 14. Nf3 {[%emt 0:00:36]} Nf7 {[%emt 0:00:24]} 15. Re1 {[%emt 0:00:38]} Bd7 {[%emt 0:00:13]} 16. Bd2 {[%emt 0:00:08]} a6 {[%emt 0:00:51]} 17. a4 {[%emt 0:00:10]} Nh5 {[%emt 0:01:34]} 18. Kh2 {[%emt 0:00:51]} Re8 {[%emt 0:00:04]} 19. Qc2 {[%emt 0:00:19]} Qf6 {[%emt 0:01:05]} 20. a5 {[%emt 0:01:20]} h6 {[%emt 0:00:19]} 21. Ne2 {[%emt 0:01:19]} Rab8 {[%emt 0:01:37]} 22. Bc3 {[%emt 0:00:09]} Qd8 {[%emt 0:00:01]} 23. g3 {[%emt 0:00:15]} Bxc3 {[%emt 0:00:43]} 24. Nxc3 {[%emt 0:00:19]} Qf6 {[%emt 0:00:03]} 25. Rxe8+ {[%emt 0:01:30]} Rxe8 {[%emt 0:00:10]} 26. Re1 {[%emt 0:00:20]} Rxe1 {[%emt 0:01:05]} 27. Nxe1 {[%emt 0:00:02]} Qd8 {[%emt 0:00:51]} 28. Ng2 {[%emt 0:01:49]} Qxa5 {[%emt 0:03:33]} 29. g4 {[%emt 0:01:24]} Ng7 {[%emt 0:00:02]} 30. Nh4 {[%emt 0:00:16]} Qd8 {[%emt 0:00:00]} 31. Nxg6 {[%emt 0:00:17]} fxg4 {[%emt 0:00:01]} 32. Ne4 {[%emt 0:02:11]} Bf5 {[%emt 0:01:49]} 33. Qc3 {[%emt 0:02:10]} Bxe4 {[%emt 0:01:14]} 34. Bxe4 {[%emt 0:00:02]} gxh3 {[%emt 0:00:11]} 35. Qxh3 {[%emt 0:00:18]} b5 {[%emt 0:00:39]} 36. b3 {[%emt 0:00:51]} bxc4 {[%emt 0:00:13]} 37. bxc4 {[%emt 0:00:01]} a5 {[%emt 0:00:01]} 38. Bc2 {[%emt 0:00:06]} h5 {[%emt 0:00:36]} 39. Qe3 {[%emt 0:00:20]} Nh6 {[%emt 0:00:12]} 40. Ne7+ {[%emt 0:00:39]} Kf7 {[%emt 0:00:19]} 41. Nc6 {[%emt 0:02:22]} Ng4+ {[%emt 0:00:02]} 42. Kg3 {[%emt 0:00:04]} Nxe3 {[%emt 0:00:06]} 43. Nxd8+ {[%emt 0:00:01]} Ke8 {[%emt 0:00:01]} 44. Nb7 {[%emt 0:00:10]} Nxc2 {[%emt 0:00:31]} 45. Nxd6+ {[%emt 0:00:06]} Ke7 {[%emt 0:00:03]} 46. Nb5 {[%emt 0:00:01]} Nf5+ {[%emt 0:00:04]} 0-1

[Event "FishPartners Open 2018"]
[Site "Spakenburg"]
[Date "2018.07.07"]
[Round "5"]
[White "Nijboer, Friso"]
[Black "Lai, Hing Ting"]
[Result "1/2-1/2"]
[ECO "B06"]
[WhiteElo "2495"]
[BlackElo "2447"]
[Annotator "ChessBase"]
[PlyCount "130"]
[EventDate "2018.07.07"]
[EventType "swiss"]
[EventCountry "NED"]
[SourceTitle "playchess.com"]
[Source "ChessBase"]
[SourceQuality "1"]
[TimeControl "1500"]

1. e4 {[%emt 0:00:01]} g6 {[%emt 0:00:01]} 2. d4 {[%emt 0:00:02]} Bg7 {[%emt 0:00:01]} 3. Nc3 {[%emt 0:00:03]} d6 {[%emt 0:00:00]} 4. Be3 {[%emt 0:00:02]} a6 {[%emt 0:00:01]} 5. Qd2 {[%emt 0:00:03]} b5 {[%emt 0:00:01]} 6. f3 {[%emt 0:00:13]} c6 {[%emt 0:00:07]} 7. h4 {[%emt 0:00:21]} h5 {[%emt 0:00:04]} 8. a4 {[%emt 0:00:02]} b4 {[%emt 0:00:13]} 9. Nd1 {[%emt 0:00:43]} a5 {[%emt 0:00:01]} 10. c3 {[%emt 0:00:47]} bxc3 {[%emt 0:00:02]} 11. bxc3 {[%emt 0:00:01]} Nf6 {[%emt 0:00:01]} 12. Nh3 {[%emt 0:00:22]} Bxh3 {[%emt 0:00:03]} 13. Rxh3 {[%emt 0:00:02]} Nbd7 {[%emt 0:00:05]} 14. Bd3 {[%emt 0:01:36]} O-O {[%emt 0:00:06]} 15. Rh1 {[%emt 0:03:07]} e5 {[%emt 0:00:33]} 16. Rb1 {[%emt 0:00:18]} Qc7 {[%emt 0:00:29]} 17. Nf2 {[%emt 0:00:09]} d5 {[%emt 0:00:14]} 18. Ke2 {[%emt 0:04:28]} c5 {[%emt 0:01:13]} 19. dxc5 {[%emt 0:01:04]} Nxc5 {[%emt 0:00:52]} 20. Bxc5 {[%emt 0:00:51]} Qxc5 {[%emt 0:00:01]} 21. Rb5 {[%emt 0:00:00]} Qc6 {[%emt 0:00:31]} 22. Rc1 {[%emt 0:00:32]} dxe4 {[%emt 0:01:03]} 23. Nxe4 {[%emt 0:00:10]} Nd5 {[%emt 0:00:27]} 24. Rc5 {[%emt 0:00:50]} Nf4+ {[%emt 0:02:18]} 25. Qxf4 {[%emt 0:00:02]} Qxc5 {[%emt 0:00:01]} 26. Qxf7+ {[%emt 0:00:01]} Rxf7 {[%emt 0:00:19]} 27. Nxc5 {[%emt 0:00:01]} Kh7 {[%emt 0:00:41]} 28. Ne4 {[%emt 0:00:34]} Rb7 {[%emt 0:00:28]} 29. Bb5 {[%emt 0:00:05]} Rd8 {[%emt 0:00:52]} 30. c4 {[%emt 0:00:13]} Bh6 {[%emt 0:00:04]} 31. Rc2 {[%emt 0:00:03]} Kg7 {[%emt 0:00:41]} 32. c5 {[%emt 0:00:01]} Rc7 {[%emt 0:00:03]} 33. c6 {[%emt 0:00:02]} Kf7 {[%emt 0:00:46]} 34. Nc5 {[%emt 0:02:04]} Ke7 {[%emt 0:00:23]} 35. Na6 {[%emt 0:00:05]} Ra7 {[%emt 0:02:02]} 36. Nc5 {[%emt 0:00:08]} Rc8 {[%emt 0:00:49]} 37. Ne4 {[%emt 0:00:10]} Bg7 {[%emt 0:01:42]} 38. Kd3 {[%emt 0:00:04]} Bf8 {[%emt 0:00:39]} 39. Kc4 {[%emt 0:00:31]} Ke6 {[%emt 0:00:15]} 40. Nc5+ {[%emt 0:00:44]} Kf5 {[%emt 0:00:13]} 41. Kd5 {[%emt 0:00:18]} Rd8+ {[%emt 0:03:12]} 42. Nd7 {[%emt 0:00:21]} Rc7 {[%emt 0:00:02]} 43. Bd3+ {[%emt 0:00:28]} Kf4 {[%emt 0:00:01]} 44. Ke6 {[%emt 0:00:02]} Bb4 {[%emt 0:00:24]} 45. Bxg6 {[%emt 0:00:23]} Kg3 {[%emt 0:00:00]} 46. Bxh5 {[%emt 0:00:19]} Rdc8 {[%emt 0:01:01]} 47. Nxe5 {[%emt 0:00:13]} Re7+ {[%emt 0:00:10]} 48. Kd5 {[%emt 0:00:41]} Rd8+ {[%emt 0:00:00]} 49. Nd7 {[%emt 0:00:01]} Rdxd7+ {[%emt 0:00:02]} 50. cxd7 {[%emt 0:00:01]} Rxd7+ {[%emt 0:00:00]} 51. Kc4 {[%emt 0:00:03]} Rc7+ {[%emt 0:00:33]} 52. Kb3 {[%emt 0:00:05]} Rxc2 {[%emt 0:00:01]} 53. Kxc2 {[%emt 0:00:00]} Be7 {[%emt 0:00:03]} 54. Bg4 {[%emt 0:00:05]} Bxh4 {[%emt 0:00:04]} 55. Bh3 {[%emt 0:00:01]} Bg5 {[%emt 0:00:00]} 56. Kd3 Bf4 57. Kc4 {[%emt 0:00:03]} Bg5 {[%emt 0:00:01]} 58. Kb5 {[%emt 0:00:00]} Bd2 {[%emt 0:00:01]} 59. Kb6 {[%emt 0:00:03]} Kf4 {[%emt 0:00:00]} 60. Bd7 {[%emt 0:00:02]} Be1 {[%emt 0:00:01]} 61. Bc6 {[%emt 0:00:03]} Bd2 {[%emt 0:00:01]} 62. g4 {[%emt 0:00:01]} Kg5 {[%emt 0:00:02]} 63. Kc5 {[%emt 0:00:02]} Bb4+ {[%emt 0:00:01]} 64. Kd5 {[%emt 0:00:01]} Bd2 {[%emt 0:00:00]} 65. Ke4 {[%emt 0:00:01]} Bc1 {[%emt 0:00:01]} 1/2-1/2

[Event "FishPartners Open 2018"]
[Site "Spakenburg"]
[Date "2018.07.07"]
[Round "5"]
[White "Beerdsen, Thomas"]
[Black "Timman, Jan"]
[Result "0-1"]
[ECO "C09"]
[WhiteElo "2469"]
[BlackElo "2555"]
[Annotator "ChessBase"]
[PlyCount "114"]
[EventDate "2018.07.07"]
[EventType "swiss"]
[EventCountry "NED"]
[SourceTitle "playchess.com"]
[Source "ChessBase"]
[SourceQuality "1"]
[TimeControl "1500"]

1. e4 {[%emt 0:00:07]} e6 {[%emt 0:00:07]} 2. d4 {[%emt 0:00:02]} d5 {[%emt 0:00:02]} 3. Nd2 {[%emt 0:00:02]} c5 {[%emt 0:00:16]} 4. exd5 {[%emt 0:00:07]} exd5 {[%emt 0:00:02]} 5. Ngf3 {[%emt 0:00:04]} Nc6 {[%emt 0:00:05]} 6. Bb5 {[%emt 0:00:07]} Bd6 {[%emt 0:00:04]} 7. O-O {[%emt 0:00:24]} cxd4 {[%emt 0:00:19]} 8. Nb3 {[%emt 0:00:48]} Nge7 {[%emt 0:00:07]} 9. Nbxd4 {[%emt 0:00:08]} O-O {[%emt 0:00:03]} 10. h3 {[%emt 0:00:17]} a6 {[%emt 0:00:18]} 11. Bd3 {[%emt 0:00:04]} Ng6 {[%emt 0:00:24]} 12. Re1 {[%emt 0:00:46]} Qc7 {[%emt 0:00:15]} 13. Bd2 {[%emt 0:00:57]} Bd7 {[%emt 0:00:10]} 14. Bc3 {[%emt 0:00:11]} Rae8 {[%emt 0:00:52]} 15. Rxe8 {[%emt 0:00:16]} Rxe8 {[%emt 0:00:02]} 16. Ng5 {[%emt 0:03:40]} Nce5 {[%emt 0:04:57]} 17. Qh5 {[%emt 0:04:04]} h6 {[%emt 0:00:02]} 18. Nxf7 {[%emt 0:00:05]} Kxf7 {[%emt 0:00:03]} 19. Re1 {[%emt 0:02:07]} Nxd3 {[%emt 0:00:55]} 20. Qxd5+ {[%emt 0:00:09]} Kf8 21. Rxe8+ Kxe8 {[%emt 0:00:21]} 22. cxd3 {[%emt 0:00:35]} Ne7 {[%emt 0:01:30]} 23. Qh5+ {[%emt 0:00:05]} Kf8 {[%emt 0:00:17]} 24. Nf3 {[%emt 0:01:18]} Bf5 {[%emt 0:01:18]} 25. Nd4 {[%emt 0:00:43]} Qd7 {[%emt 0:00:38]} 26. Qe2 {[%emt 0:00:42]} Bc5 {[%emt 0:01:32]} 27. Nf3 {[%emt 0:00:19]} Qxd3 {[%emt 0:00:13]} 28. Qe5 {[%emt 0:00:16]} Qd1+ {[%emt 0:00:02]} 29. Ne1 {[%emt 0:00:08]} Qd6 {[%emt 0:00:41]} 30. Qxg7+ {[%emt 0:00:03]} Ke8 {[%emt 0:00:01]} 31. Nf3 {[%emt 0:00:14]} Kd7 {[%emt 0:01:13]} 32. Ne5+ {[%emt 0:00:37]} Kc8 {[%emt 0:00:01]} 33. Qf8+ {[%emt 0:00:45]} Qd8 {[%emt 0:00:14]} 34. Qxh6 {[%emt 0:00:28]} Qd1+ {[%emt 0:00:02]} 35. Kh2 {[%emt 0:00:01]} Bxf2 {[%emt 0:00:12]} 36. Nf3 {[%emt 0:00:01]} Bc5 {[%emt 0:00:08]} 37. Be5 {[%emt 0:00:08]} Qd5 {[%emt 0:00:14]} 38. b4 {[%emt 0:00:16]} Bxb4 {[%emt 0:00:08]} 39. Qb6 {[%emt 0:00:01]} Qc5 {[%emt 0:00:08]} 40. Qf6 {[%emt 0:00:04]} Kd7 {[%emt 0:00:46]} 41. Bg3 {[%emt 0:00:02]} Qd5 {[%emt 0:00:26]} 42. Ne5+ {[%emt 0:00:26]} Kc8 {[%emt 0:00:11]} 43. Nf7 {[%emt 0:00:14]} Kd7 {[%emt 0:00:31]} 44. Qb6 {[%emt 0:00:18]} Ba5 {[%emt 0:00:07]} 45. Ne5+ {[%emt 0:00:09]} Ke8 {[%emt 0:00:28]} 46. Qf6 {[%emt 0:00:11]} Bc7 {[%emt 0:00:11]} 47. Qh8+ {[%emt 0:00:03]} Qg8 {[%emt 0:00:02]} 48. Qh5+ {[%emt 0:00:02]} Bg6 {[%emt 0:00:22]} 49. Qh4 {[%emt 0:00:15]} Bxe5 {[%emt 0:00:07]} 50. Bxe5 {[%emt 0:00:01]} Qe6 {[%emt 0:00:03]} 51. Bg3 {[%emt 0:00:10]} Be4 {[%emt 0:00:05]} 52. Qh8+ {[%emt 0:00:02]} Kd7 {[%emt 0:00:01]} 53. Qd4+ {[%emt 0:00:02]} Bd5 {[%emt 0:00:02]} 54. Qb2 {[%emt 0:00:08]} Nf5 {[%emt 0:00:06]} 55. Bf4 {[%emt 0:00:03]} Qe4 {[%emt 0:00:03]} 56. Qd2 {[%emt 0:00:01]} Nh4 {[%emt 0:00:09]} 57. Kg3 {[%emt 0:00:10]} Nxg2 {[%emt 0:00:06]} 0-1